bitfinex/quotes_ETHUSD_20220106
["timestamp","ask_amount","ask_price","bid_price","bid_amount"]
[1641485645646,1.42016052,3404.0,3403.4,0.00341054]
[1641485645847,1.42016052,3404.0,3403.7,1.20912427]
[1641485646248,1.42016052,3404.0,3403.8,0.00113685]
[1641485647047,1.42016052,3404.0,3403.5,1.26488863]
[1641485647048,4.75,3403.9,3403.5,1.26488863]
[1641485647251,1.42016052,3404.0,3403.5,1.26488863]
[1641485647450,0.3,3404.0,3403.6,0.00113684]
[1641485647652,0.3,3404.0,3403.7,1.23856489]
[1641485647849,0.00170527,3403.9,3403.7,1.27052684]
[1641485648048,0.00170527,3403.9,3403.7,1.27610965]
[1641485648249,0.00113684,3403.8,3403.7,1.27614957]
[1641485649696,0.00113684,3403.8,3403.7,1.28008107]
[1641485651198,0.00113684,3403.8,3403.7,2.28008107]
[1641485654947,0.00113684,3403.8,3403.7,2.27377813]
[1641485655147,0.00113684,3403.8,3403.7,1.27396327]
[1641485655348,0.00113684,3403.8,3403.7,1.27922991]
[1641485655847,10.55,3404.6,3403.7,0.0039315]
[1641485656048,10.85,3404.6,3404.1,1.02159494]
[1641485656248,10.85454739,3404.6,3404.1,1.02159494]
[1641485656454,6.75,3404.5,3404.0,1.03075418]
[1641485656897,6.85,3404.3,3403.9,1.11623583]
[1641485657293,0.3022737,3404.2,3403.9,1.11623583]
[1641485657492,0.3022737,3404.2,3403.6,1.0]
[1641485657493,4.2,3404.1,3403.6,1.0]
[1641485657694,0.00170527,3404.1,3403.7,1.21179801]
[1641485657899,0.00113685,3404.0,3403.7,1.21179801]
[1641485658294,0.00170527,3404.1,3403.7,1.21179801]
[1641485658694,0.00113685,3404.0,3403.7,1.21179801]
[1641485659095,0.00511581,3404.7,3403.7,1.24491835]
[1641485659401,0.00511581,3404.7,3403.8,2.62287551]
[1641485659594,0.00511581,3404.7,3403.9,1.0]
[1641485659796,0.00511581,3404.7,3403.9,1.03242016]
[1641485659994,0.00511581,3404.7,3404.4,2.11460083]
[1641485660197,0.00511581,3404.7,3404.5,1.08777989]
[1641485660542,0.00511581,3404.7,3404.5,1.12276166]
[1641485664048,0.00511581,3404.7,3404.5,1.08777989]
[1641485666190,0.00511581,3404.7,3404.5,1.12256704]
[1641485666390,0.00511581,3404.7,3404.5,1.08777989]
[1641485666591,0.00511581,3404.7,3404.5,1.12136268]
[1641485666793,0.00511581,3404.7,3404.5,1.08777989]
[1641485667194,0.00511581,3404.7,3404.5,1.12078064]
[1641485667692,0.00511581,3404.7,3404.5,2.12078064]
[1641485667892,0.00511581,3404.7,3404.5,1.12078064]
[1641485669143,0.00511581,3404.7,3404.5,2.12078064]
[1641485669544,0.00511581,3404.7,3404.5,1.12078064]
[1641485672196,0.00511581,3404.7,3404.5,2.12078064]
[1641485672399,0.00511581,3404.7,3404.5,1.12078064]
[1641485672598,0.00511581,3404.7,3404.5,2.12078064]
[1641485672798,0.00511581,3404.7,3404.5,1.12078064]
[1641485673898,0.00511581,3404.7,3404.6,13.0141573]
[1641485674100,0.00511581,3404.7,3404.6,12.00620142]
[1641485674901,1.12016052,3405.8,3404.7,10.55]
[1641485675098,1.12016052,3405.8,3404.8,1.0]
[1641485675301,0.00568424,3405.7,3404.9,0.425]
[1641485675574,0.00568424,3405.7,3405.6,0.03969899]
[1641485675766,1.49345135,3406.1,3405.9,1.44704357]
[1641485676265,1.90230788,3406.7,3405.9,1.44704357]
[1641485676666,0.00852636,3406.2,3405.9,1.44704357]
[1641485677064,0.00795793,3406.1,3405.9,1.44704357]
[1641485677569,0.00738951,3406.0,3405.9,1.44704357]
[1641485679394,0.00738951,3406.0,3405.9,2.94391276]
[1641485679593,0.00738951,3406.0,3405.9,3.94391276]
[1641485681194,0.00738951,3406.0,3405.9,2.44704357]
[1641485681594,0.00738951,3406.0,3405.9,1.44704357]
[1641485681798,0.00738951,3406.0,3405.9,0.03109219]
[1641485681998,0.00738951,3406.0,3405.5,0.7340757]
[1641485681999,0.74147951,3406.0,3405.5,0.76950383]
[1641485682196,0.74147951,3406.0,3405.5,0.03542813]
[1641485682399,0.30682109,3405.9,3405.4,0.04886315]
[1641485682801,0.00625266,3405.8,3405.4,0.04886315]
[1641485683040,0.00625266,3405.8,3405.5,1.09002556]
[1641485683238,0.00568424,3405.7,3405.5,1.12179685]
[1641485683441,0.00568424,3405.7,3405.5,2.65870995]
[1641485683641,0.00511582,3405.6,3405.5,2.65870995]
[1641485683842,0.00511582,3405.6,3405.5,1.56868439]
[1641485684245,0.00511582,3405.6,3405.2,0.03537539]
[1641485684446,0.73423,3405.5,3405.2,0.03537539]
[1641485684644,1.47300739,3405.5,3405.2,0.03537539]
[1641485684844,0.00397897,3405.4,3405.2,0.03537539]
[1641485685244,1.76846,3405.5,3405.0,1.14854209]
[1641485685245,0.00341055,3405.3,3405.0,1.14854209]
[1641485685451,0.73772055,3405.3,3404.4,2.49674995]
[1641485685646,0.00284212,3405.2,3404.6,0.03342308]
[1641485685847,0.73431,3405.0,3404.5,0.00113684]
[1641485686047,0.3,3404.9,3404.5,0.00113684]
[1641485686247,0.30113685,3404.9,3404.5,0.00113684]
[1641485686649,0.30113685,3404.9,3404.5,1.21960451]
[1641485687299,0.30113685,3404.9,3404.5,1.17992187]
[1641485687495,1.76983685,3404.9,3404.5,1.17992187]
[1641485687696,1.03546685,3404.9,3404.5,1.21793755]
[1641485688099,1.03546685,3404.9,3404.5,1.17992187]
[1641485689297,0.73442,3404.8,3404.5,1.17992187]
[1641485689902,1.46883,3404.7,3404.5,0.00113684]
[1641485690097,1.76883,3404.7,3404.5,0.00113684]
[1641485690399,1.76883,3404.7,3404.1,1.05557248]
[1641485690400,0.73449,3404.6,3404.2,0.00284211]
[1641485690852,0.3,3404.5,3404.0,0.00397896]
[1641485691050,0.3,3404.5,3404.1,1.2508048]
[1641485691249,0.73452,3404.3,3404.1,1.2508048]
[1641485691449,0.73452,3404.3,3404.2,0.00284211]
[1641485692450,0.73452,3404.3,3403.8,0.00511581]
[1641485692451,0.73452,3404.2,3403.8,0.00511581]
[1641485692851,1.46903,3404.1,3403.8,0.00511581]
[1641485693153,1.46903,3404.1,3404.0,1.41150156]
[1641485693350,0.73452,3404.2,3404.0,1.41150156]
[1641485693551,0.73452,3404.2,3404.0,1.41548052]
[1641485693851,0.73452,3404.2,3404.1,0.00341054]
[1641485694996,0.73452,3404.2,3404.1,1.00341054]
[1641485696495,0.73452,3404.2,3404.1,2.45835703]
[1641485696699,0.73452,3404.2,3404.1,2.42528273]
[1641485696897,0.73452,3404.2,3404.1,2.45787544]
[1641485698157,0.73444,3404.3,3404.1,2.45787544]
[1641485698558,0.73444,3404.3,3404.2,0.00284211]
[1641485699359,0.73444,3404.3,3404.1,0.00341054]
[1641485699563,0.73444,3404.3,3404.1,1.4301143]
[1641485699960,0.73444,3404.3,3404.2,0.00284211]
[1641485700362,0.73444,3404.3,3404.2,1.07268576]
[1641485701161,0.73444,3404.3,3404.2,2.63653205]
[1641485701560,0.73444,3404.3,3404.2,2.5666884]
[1641485701799,0.73444,3404.3,3404.2,1.00284211]
[1641485702398,0.73444,3404.3,3404.2,0.00284211]
[1641485702601,0.73444,3404.3,3404.2,1.5666884]
[1641485703201,0.73444,3404.3,3403.9,1.07033599]
[1641485703406,0.7346,3404.2,3403.9,1.07033599]
[1641485703603,0.7346,3404.2,3404.0,0.00113685]
[1641485704200,0.7346,3404.1,3404.0,0.00113685]
[1641485704402,0.7346,3404.2,3404.0,0.00113685]
[1641485705004,0.7346,3404.2,3403.9,0.00170527]
[1641485706445,0.7346,3404.2,3404.0,0.73436]
[1641485706647,0.7346,3404.2,3404.0,0.76975035]
[1641485706847,0.7346,3404.2,3404.0,0.76915546]
[1641485707047,0.7346,3404.2,3404.0,1.0]
[1641485707449,0.7346,3404.2,3403.9,3.17907499]
[1641485707648,0.7346,3404.2,3404.0,1.0]
[1641485707847,0.7346,3404.2,3403.9,1.03544388]
[1641485708047,0.7346,3404.2,3403.8,1.0022737]
[1641485708249,0.7346,3404.2,3403.8,0.0022737]
[1641485708449,0.7346,3404.2,3403.9,0.00170527]
[1641485708648,0.7346,3404.2,3403.9,0.2203204]
[1641485709049,1.46877,3404.3,3404.1,1.06783761]
[1641485709296,1.46877,3404.3,3404.2,2.53798355]
[1641485709497,0.00113685,3404.9,3404.2,0.425]
[1641485709698,0.00113685,3404.9,3404.5,0.01297464]
[1641485709902,1.11299567,3405.1,3405.0,6.80624984]
[1641485710297,1.11299567,3405.1,3405.0,8.54038984]
[1641485710696,1.11299567,3405.1,3405.0,3.14038984]
[1641485710895,1.46825,3405.5,3405.0,3.14038984]
[1641485711098,1.46825,3405.5,3405.1,1.0]
[1641485711298,0.00625266,3405.3,3405.2,8.38412]
[1641485711500,0.00625266,3405.3,3405.2,0.73412]
[1641485711696,0.0096632,3405.9,3405.2,1.73412]
[1641485711896,0.0096632,3405.9,3405.4,0.2202265]
[1641485712095,0.00909477,3405.8,3405.4,0.2202265]
[1641485712299,0.00909477,3405.8,3405.6,1.29358905]
[1641485712498,0.00909477,3405.8,3405.6,2.02760905]
[1641485712499,0.00852635,3405.7,3405.6,2.02760905]
[1641485712695,0.00852635,3405.7,3405.6,2.06321637]
[1641485713144,0.00852635,3405.7,3405.6,2.28342167]
[1641485713542,0.00852635,3405.7,3405.6,8.78342167]
[1641485713741,0.00852635,3405.7,3405.6,8.95132167]
[1641485713941,0.00852635,3405.7,3405.6,10.37632167]
[1641485714345,0.00852635,3405.7,3405.6,3.87632167]
[1641485714346,0.14231922,3405.7,3405.6,3.87632167]
[1641485714942,0.14231922,3405.7,3405.6,3.88025097]
[1641485715543,0.14231922,3405.7,3405.6,10.33025097]
[1641485716809,0.95600499,3408.5,3408.4,2.09845479]
[1641485717004,14.3241,3411.2,3410.9,12.07332903]
[1641485717005,44.96508138,3411.0,3410.9,12.07332903]
[1641485717204,44.96508138,3411.0,3410.9,2.22959688]
[1641485717205,23.99962588,3411.0,3410.9,2.22959688]
[1641485717405,0.71716087,3410.2,3409.9,1.0385]
[1641485717605,0.71716087,3410.2,3409.9,1.07358876]
[1641485717801,0.71716087,3410.2,3410.1,0.01210761]
[1641485718004,0.71716087,3410.2,3410.1,5.74610761]
[1641485718200,13.49168354,3411.1,3410.1,5.74610761]
[1641485718201,13.49168354,3411.1,3410.2,10.57536008]
[1641485718400,0.117416,3411.6,3411.1,9.66271646]
[1641485718601,0.117416,3411.6,3411.5,5.309]
[1641485718800,0.117416,3411.6,3411.1,3.87228944]
[1641485719002,0.117416,3411.6,3411.5,5.309]
[1641485719003,0.12537393,3411.6,3411.5,5.309]
[1641485719203,7.33235432,3411.8,3411.6,4.5]
[1641485719405,7.33235432,3411.8,3411.7,0.425]
[1641485719802,0.00113685,3411.8,3411.7,0.425]
[1641485720003,0.25,3413.0,3411.8,10.55]
[1641485720205,0.32921052,3413.0,3411.9,5.734]
[1641485720401,0.00511581,3412.7,3411.9,5.734]
[1641485720651,0.00511581,3412.7,3412.3,1.99461573]
[1641485720850,0.32921052,3413.0,3412.4,3.46969523]
[1641485720851,0.00454739,3412.6,3412.4,3.46969523]
[1641485721051,0.00454739,3412.6,3412.4,1.89002]
[1641485721351,0.00397896,3412.5,3412.4,2.1097892]
[1641485721548,0.00397896,3412.5,3412.4,0.6447692]
[1641485721753,0.00397896,3412.5,3412.4,4.01853508]
[1641485721953,0.00397896,3412.5,3412.4,1.3773292]
[1641485722350,7.896e-05,3412.5,3412.4,11.9273292]
[1641485722548,0.25,3413.0,3412.4,11.9273292]
[1641485722549,0.25,3413.0,3412.5,10.55]
[1641485722749,0.01347252,3413.9,3413.8,1.86946988]
[1641485722950,0.01347252,3413.9,3413.8,2.60246988]
[1641485723249,0.01347252,3413.9,3413.8,3.02746988]
[1641485723650,2.93412602,3414.0,3413.8,3.02746988]
[1641485723850,2.93412602,3414.0,3413.8,1.158]
[1641485724051,2.93412602,3414.0,3413.8,0.6446577]
[1641485724305,2.93412602,3414.0,3413.8,0.425]
[1641485724702,2.93412602,3414.0,3413.8,1.1572]
[1641485724902,2.93412602,3414.0,3413.9,12.64400835]
[1641485725106,2.93412602,3414.0,3413.9,2.51900835]
[1641485725303,2.93412602,3414.0,3413.9,0.425]
[1641485725304,2.94265238,3414.0,3413.9,0.425]
[1641485726104,2.94265238,3414.0,3413.9,1.15718]
[1641485726312,2.94265238,3414.0,3413.9,7.25718]
[1641485726505,2.94265238,3414.0,3413.9,1.15718]
[1641485726708,0.22991709,3413.0,3412.8,5.309]
[1641485726913,0.22991709,3413.0,3412.0,3.03929]
[1641485726914,0.22991709,3413.0,3412.5,0.425]
[1641485727117,1.26673324,3412.9,3412.5,0.425]
[1641485727308,1.26673324,3412.9,3412.0,0.425]
[1641485727512,0.425,3412.5,3412.0,0.425]
[1641485727708,0.425,3412.5,3412.1,0.0022737]
[1641485727709,1.36389834,3412.5,3412.1,0.0022737]
[1641485727906,1.14053965,3412.2,3411.6,1.03024441]
[1641485728153,1.14053965,3412.2,3410.4,0.2198592]
[1641485728154,0.7329,3412.0,3410.4,0.2198592]
[1641485728351,1.14053965,3412.2,3411.7,0.00227368]
[1641485728549,1.15073811,3411.6,3410.7,0.01205194]
[1641485728750,1.15073811,3411.6,3410.8,0.00738949]
[1641485729548,10.01757536,3410.9,3410.8,0.00738949]
[1641485729755,2.16757536,3410.9,3410.8,0.00738949]
[1641485730051,1.61026528,3411.0,3410.0,2.93616601]
[1641485730251,1.61026528,3411.0,3410.0,0.05183449]
[1641485730449,1.61026528,3411.0,3410.1,0.01136846]
[1641485730849,0.425,3411.4,3410.0,3.4180263]
[1641485731054,0.425,3411.4,3410.5,1.78327211]
[1641485731251,1.80569005,3411.8,3410.5,1.81448695]
[1641485731252,0.0095765,3411.8,3410.5,1.81448695]
[1641485731452,0.0095765,3411.8,3410.9,0.012831]
[1641485731901,0.0095765,3411.8,3411.0,0.00625265]
[1641485732505,0.0095765,3411.8,3410.8,0.01248432]
[1641485732702,0.0095765,3411.8,3410.8,0.74510432]
[1641485733004,0.0095765,3411.8,3410.9,0.00682107]
[1641485733006,1.71829336,3411.5,3410.9,0.00682107]
[1641485733404,1.60156212,3411.4,3410.9,0.00682107]
[1641485733603,1.60156212,3411.4,3410.4,0.92229397]
[1641485733806,1.23423581,3410.6,3410.5,0.00909476]
[1641485734205,0.73315,3411.2,3410.5,0.00909476]
[1641485734404,0.425,3411.4,3410.5,0.00909476]
[1641485735106,0.0095765,3411.8,3410.9,0.91925878]
[1641485735304,0.0095765,3411.8,3411.1,0.8833]
[1641485735581,0.0095765,3411.8,3411.3,0.91843383]
[1641485735860,0.0095765,3411.8,3411.1,1.0]
[1641485735861,0.0095765,3411.8,3411.5,0.9209789]
[1641485736263,3.26616951,3412.7,3412.6,0.8833]
[1641485736862,2.9435108,3414.2,3413.8,0.8833]
[1641485737062,2.9435108,3414.2,3411.6,0.00397897]
[1641485737063,0.8833,3413.8,3411.6,0.21824113]
[1641485737267,1.91101762,3413.9,3412.3,0.01265434]
[1641485737470,1.91101762,3413.9,3413.2,0.01262612]
[1641485737471,0.75334762,3413.9,3413.2,0.01262612]
[1641485737663,0.00625266,3413.7,3412.5,0.21426216]
[1641485737864,0.00625266,3413.7,3412.7,0.21426216]
[1641485738063,2.20338937,3414.0,3412.9,0.21426216]
[1641485738267,2.20338937,3414.0,3412.9,3.05147754]
[1641485738568,0.425,3415.6,3414.2,0.21426216]
[1641485739066,3.9707,3415.9,3414.2,0.21426216]
[1641485739295,1.46479,3414.7,3413.0,0.00341054]
[1641485739505,1.88979,3414.7,3413.0,0.00341054]
[1641485739695,0.00568424,3414.6,3412.9,0.73233]
[1641485739895,2.84289962,3414.6,3412.6,0.00568423]
[1641485740098,0.00511581,3414.5,3413.0,0.00341054]
[1641485740299,0.00511581,3414.5,3413.0,0.2197032]
[1641485740497,0.00454739,3414.4,3413.7,0.01294983]
[1641485740897,0.00397897,3414.3,3413.7,0.01294983]
[1641485741097,0.00397897,3414.3,3413.5,1.97382264]
[1641485741303,0.25,3416.0,3413.8,0.2196471]
[1641485741501,0.25,3416.0,3414.3,0.73197]
[1641485741699,0.25,3416.0,3414.4,10.58727158]
[1641485741899,0.00170527,3414.9,3414.4,10.58840843]
[1641485742101,0.00170527,3414.9,3414.4,0.03840843]
[1641485742302,0.00113684,3414.8,3414.4,1.62418057]
[1641485742501,0.00113684,3414.8,3414.5,0.2195917]
[1641485742809,1.36827566,3415.5,3414.4,0.00113685]
[1641485743046,1.66827566,3415.5,3414.4,0.00113685]
[1641485743247,1.66827566,3415.5,3414.0,0.00341054]
[1641485743248,0.00454738,3415.4,3414.0,0.00341054]
[1641485743551,1.01288006,3414.5,3413.8,0.00454739]
[1641485743847,0.00397896,3415.3,3413.8,0.00454739]
[1641485744049,0.425,3415.2,3413.8,0.00454739]
[1641485744251,0.425,3415.2,3412.5,0.0380437]
[1641485744252,0.01263471,3415.0,3413.7,0.00511581]
[1641485744450,0.00284211,3415.1,3413.3,0.01259861]
[1641485744648,0.00284211,3415.1,3414.8,0.97825324]
[1641485744849,0.73453369,3415.0,3414.8,0.97825324]
[1641485745048,1.03453369,3415.0,3414.8,0.97825324]
[1641485745651,1.03453369,3415.0,3414.3,1.95435236]
[1641485745850,0.98453369,3415.0,3414.9,1.95435236]
[1641485746258,1.46452,3415.1,3414.9,12.50435236]
[1641485746460,0.25,3416.0,3415.0,0.03167742]
[1641485746891,0.00511581,3415.9,3414.9,2.97826318]
[1641485747096,0.00511581,3415.9,3415.0,0.03676545]
[1641485747294,0.00454739,3415.8,3415.0,0.03676545]
[1641485747497,0.00454739,3415.8,3414.9,2.94396944]
[1641485747498,0.00454739,3415.8,3415.3,3.50656545]
[1641485747698,0.25,3416.0,3415.3,3.50656545]
[1641485747699,0.00397897,3415.7,3415.3,3.50656545]
[1641485747895,10.55,3415.6,3415.1,0.84841503]
[1641485748106,10.55,3415.6,3414.8,0.05689159]
[1641485748107,1.69491241,3415.2,3414.8,0.05689159]
[1641485748299,0.00284212,3415.5,3414.5,9.159e-05]
[1641485748697,0.00227369,3415.4,3414.6,0.00227369]
[1641485749103,0.25,3416.0,3414.6,0.00227369]
[1641485749104,0.00170527,3415.3,3414.6,0.00227369]
[1641485749397,1.3936447,3415.9,3415.2,0.03516302]
[1641485749595,1.3936447,3415.9,3414.3,0.00397896]
[1641485749800,1.39876051,3415.9,3414.3,0.00397896]
[1641485749996,0.00169499,3415.2,3414.3,0.00397896]
[1641485750552,0.25,3416.0,3415.1,10.55]
[1641485750746,0.25,3417.0,3415.9,0.01289117]
[1641485751150,0.7316165,3417.4,3416.9,0.01226738]
[1641485751348,0.25,3418.0,3416.9,0.01226738]
[1641485751349,0.25,3418.0,3417.3,1.46319]
[1641485751549,0.25,3418.0,3417.5,0.7314]
[1641485751745,0.00103,3419.0,3417.7,10.55]
[1641485751946,0.00103,3419.0,3417.8,0.0121799]
[1641485752146,0.01250532,3418.1,3417.8,0.0121799]
[1641485752447,6.8910866,3420.3,3418.8,1.46257]
[1641485752845,0.00454739,3418.9,3418.8,1.46257]
[1641485753045,0.6873916,3420.3,3418.8,1.46257]
[1641485753249,2.8811005,3420.3,3418.8,1.46257]
[1641485753449,2.17335967,3419.2,3418.8,1.46257]
[1641485753846,0.00113684,3419.1,3418.8,1.46257]
[1641485754046,0.00113684,3419.1,3418.9,0.73128]
[1641485755096,0.00113684,3419.1,3418.8,1.02437292]
[1641485755294,1.16197719,3419.1,3418.8,1.02437292]
[1641485755695,4.35659769,3419.1,3418.8,1.02437292]
[1641485756094,4.35659769,3419.1,3418.6,1.37560612]
[1641485756095,4.35659769,3419.1,3418.3,1.02437292]
[1641485756295,3.35659769,3419.1,3418.3,1.02437292]
[1641485756495,3.35659769,3419.1,3418.4,0.00284212]
[1641485756696,0.7314724,3418.8,3418.4,0.00284212]
[1641485757396,3.35659769,3419.1,3417.6,1.46309]
[1641485757397,10.2,3418.4,3417.6,1.46309]
[1641485757595,2.1950334,3418.4,3417.6,1.46309]
[1641485757797,2.87180147,3418.3,3417.7,0.00397897]
[1641485758466,2.87180147,3418.3,3417.1,0.73176]
[1641485758467,0.7317616,3417.8,3416.9,1.46348]
[1641485758659,3.38543603,3417.7,3417.2,0.00284211]
[1641485758860,2.195476,3417.9,3416.4,2.92597]
[1641485758861,8.0028,3416.8,3416.4,2.92597]
[1641485759061,8.0028,3416.8,3415.8,0.08071031]
[1641485759062,9.2366,3416.8,3415.8,0.08071031]
[1641485759258,9.2366,3416.8,3415.5,1.02437292]
[1641485759460,9.2366,3416.8,3415.9,0.00738951]
[1641485759461,0.732088,3416.4,3415.9,0.00738951]
[1641485759658,8.3548,3416.8,3415.9,1.47125951]
[1641485759858,8.3548,3416.8,3415.9,1.46387]
[1641485760060,8.0028,3416.8,3416.0,0.00682108]
[1641485760462,8.0028,3416.8,3416.5,1.73286086]
[1641485760761,8.0028,3416.8,3416.6,0.00341054]
[1641485760762,0.00136495,3416.7,3416.6,0.00341054]
[1641485760962,2.15119495,3416.8,3416.6,0.00341054]
[1641485761160,2.15119495,3416.8,3416.4,2.19941739]
[1641485761360,0.00341054,3417.8,3416.6,10.55]
[1641485761563,0.00341054,3417.8,3417.1,0.73165]
[1641485761797,0.68452701,3417.7,3417.1,0.73165]
[1641485761996,0.68452701,3417.7,3417.0,1.46329]
[1641485762197,0.00227369,3417.6,3417.0,1.46329]
[1641485762599,0.00170527,3417.5,3417.0,1.46329]
[1641485762998,0.00113684,3417.4,3417.0,1.46329]
[1641485763398,0.00227369,3417.6,3417.1,0.73164]
[1641485763797,1.4634067,3418.0,3417.1,0.73164]
[1641485763798,0.00170527,3417.5,3417.1,0.73164]
[1641485764197,0.00113684,3417.4,3417.1,0.73164]
[1641485764598,0.73167,3417.8,3417.1,0.73164]
[1641485765000,0.00284211,3417.7,3417.1,0.73164]
[1641485765199,0.00284211,3417.7,3417.1,2.7407633]
[1641485765400,0.00227369,3417.6,3417.1,2.0091233]
[1641485765845,0.00170527,3417.5,3417.1,2.0091233]
[1641485766247,1.4631885,3418.4,3417.1,2.0091233]
[1641485766248,0.00113684,3417.4,3417.1,2.0091233]
[1641485766645,1.4631885,3418.4,3417.1,2.0091233]
[1641485766646,0.00625266,3418.3,3417.1,2.0091233]
[1641485766846,0.00625266,3418.3,3417.6,0.73153]
[1641485767046,0.00568423,3418.2,3417.6,0.73153]
[1641485767250,0.00568423,3418.2,3417.6,1.03153]
[1641485767446,0.00511581,3418.1,3417.6,1.03153]
[1641485767645,0.00511581,3418.1,3417.6,0.73153]
[1641485767846,0.00454738,3418.0,3417.6,0.73153]
[1641485768146,1.42497577,3417.9,3417.6,0.73153]
[1641485768346,1.42497577,3417.9,3417.0,1.46329]
[1641485768547,0.35541054,3417.8,3416.7,0.00284212]
[1641485768750,1.02670836,3417.1,3416.7,0.00284212]
[1641485768948,0.352,3417.4,3416.7,0.00284212]
[1641485769147,0.73186,3417.3,3416.7,0.00284212]
[1641485769610,0.352,3417.4,3416.7,0.00284212]
[1641485770408,0.352,3417.4,3416.5,0.00397897]
[1641485770606,0.352,3417.4,3416.9,1.46343]
[1641485771007,0.352,3417.4,3417.2,1.37560612]
[1641485771611,0.35332754,3417.4,3417.0,1.99423122]
[1641485771810,0.35332754,3417.4,3416.4,3.42184931]
[1641485771811,10.5544,3416.9,3416.4,3.42184931]
[1641485772011,0.352,3416.8,3416.4,3.42184931]
[1641485772209,1.352,3416.8,3416.5,0.00284212]
[1641485772411,1.352,3416.8,3416.4,3.42184931]
[1641485772610,0.73312255,3416.7,3416.4,3.42184931]
[1641485772811,0.73312255,3416.7,3415.8,4.55276852]
[1641485772812,1.23015179,3416.0,3415.8,3.42184931]
[1641485773250,1.23015179,3416.0,3415.9,0.00341054]
[1641485773447,10.55,3415.9,3415.3,4.55276852]
[1641485773648,0.352,3415.8,3415.3,4.55276852]
[1641485773848,10.55,3415.6,3415.5,3.44138037]
[1641485774052,10.55,3415.6,3415.0,4.58850716]
[1641485774053,10.05441556,3415.5,3415.0,0.91129723]
[1641485774250,1.06137756,3415.3,3415.0,0.57819723]
[1641485774447,0.352,3415.2,3415.1,0.00170527]
[1641485774848,10.202,3415.2,3415.1,0.00170527]
[1641485775247,10.202,3415.2,3415.0,1.38237879]
[1641485775248,11.202,3415.2,3415.0,1.38237879]
[1641485775647,11.55,3415.1,3415.0,1.38237879]
[1641485775846,10.902,3415.1,3415.0,1.38237879]
[1641485776046,0.352,3415.1,3415.0,1.38465248]
[1641485776247,0.352,3415.1,3415.0,0.00227369]
[1641485776805,4.852,3415.1,3415.0,0.00227369]
[1641485777000,0.352,3415.1,3415.0,1.38465248]
[1641485777200,0.00113685,3415.6,3415.0,1.38465248]
[1641485777598,0.00113685,3415.6,3415.0,0.00227369]
[1641485777999,0.00113685,3415.6,3415.0,0.3]
[1641485778201,0.00113685,3415.6,3414.9,0.73204]
[1641485778202,0.00113685,3415.6,3414.9,0.73488211]
[1641485778402,0.00113685,3415.6,3415.3,1.38389117]
[1641485778805,0.00113685,3415.6,3415.0,0.00227369]
[1641485778806,1.00840957,3415.3,3415.0,0.00227369]
[1641485779003,0.352,3415.2,3415.0,0.00227369]
[1641485779203,0.352,3415.2,3414.4,2.94330144]
[1641485779407,0.352,3415.2,3415.0,2.76604275]
[1641485780203,0.352,3415.2,3415.0,3.49821275]
[1641485780648,0.352,3415.2,3415.0,0.73217]
[1641485780846,0.352,3415.2,3414.8,3.54169828]
[1641485781053,0.352,3415.2,3414.6,2.76604275]
[1641485781054,2.71920328,3415.1,3414.6,2.76604275]
[1641485781264,2.71920328,3415.1,3412.3,1.2241]
[1641485781265,0.01243087,3414.9,3413.1,0.6873916]
[1641485781446,1.2353,3414.8,3414.1,2.7433138]
[1641485781648,1.2353,3414.8,3413.8,4.61628507]
[1641485781649,0.8833,3414.5,3413.8,4.61628507]
[1641485781848,3.07120328,3414.4,3413.8,4.61628507]
[1641485782053,0.49159043,3413.3,3413.1,9.16e-05]
[1641485782254,0.49159043,3413.3,3412.6,4.85058832]
[1641485782255,10.55,3413.1,3412.6,4.85058832]
[1641485782446,0.352,3413.0,3412.6,4.85058832]
[1641485782647,1.352,3413.0,3412.5,7.0131309]
[1641485782848,1.74919572,3412.9,3411.5,5.79690025]
[1641485783053,3.37120328,3412.8,3411.5,5.79690025]
[1641485783351,0.73314,3412.2,3411.5,5.79690025]
[1641485783547,0.733128,3412.0,3411.5,5.79690025]
[1641485783763,0.352,3412.5,3411.7,0.01268919]
[1641485783949,0.49159043,3413.3,3412.0,0.73283]
[1641485783950,0.352,3413.0,3412.0,0.73283]
[1641485784300,1.31541842,3413.0,3412.0,0.73283]
[1641485784711,1.6804037,3412.9,3412.0,0.73283]
[1641485785301,1.33193353,3412.3,3411.8,0.01193689]
[1641485785701,0.352,3412.5,3411.8,0.01193689]
[1641485785901,1.91398904,3412.3,3411.8,0.01193689]
[1641485786301,1.91398904,3412.3,3411.5,0.01364216]
[1641485786702,0.352,3412.5,3411.5,0.01364216]
[1641485786902,0.352,3412.5,3411.4,1.46563]
[1641485787104,0.49159043,3413.3,3411.8,2.19803]
[1641485787307,0.49159043,3413.3,3412.4,0.01223787]
[1641485787702,2.0291857,3413.8,3412.7,0.73253]
[1641485787901,2.0291857,3413.8,3413.2,0.73244]
[1641485787902,0.20765693,3413.8,3413.2,0.73244]
[1641485788354,0.352,3413.7,3413.3,0.00341054]
[1641485788747,0.352,3413.7,3413.1,0.00454738]
[1641485788947,0.352,3413.7,3413.0,0.73770581]
[1641485789347,0.352,3413.7,3413.1,0.00454738]
[1641485790750,0.73276,3413.5,3412.9,0.00568423]
[1641485791057,0.352,3413.4,3412.9,0.00568423]
[1641485791896,0.352,3413.4,3412.4,0.00852635]
[1641485792099,0.352,3413.4,3413.0,2.48216271]
[1641485792305,2.44123553,3413.8,3413.0,2.48216271]
[1641485792499,2.44123553,3413.8,3413.1,0.00454738]
[1641485793096,2.44123553,3413.8,3413.2,2.12382592]
[1641485793396,2.44123553,3413.8,3413.3,0.00341054]
[1641485793397,0.352,3413.7,3413.3,0.00341054]
[1641485793795,0.352,3413.7,3412.9,0.00568423]
[1641485793998,0.352,3413.7,3413.3,2.48216271]
[1641485794195,2.54354407,3413.7,3413.3,2.48216271]
[1641485794397,11.945699,3413.4,3413.3,2.37746271]
[1641485794597,11.945699,3413.4,3412.6,1.04464784]
[1641485794598,10.55,3413.3,3412.6,1.04464784]
[1641485794797,0.352,3413.2,3412.5,1.04464784]
[1641485794996,1.352,3413.2,3412.5,1.04464784]
[1641485795198,1.352,3413.2,3412.6,0.0073895]
[1641485795546,0.73298,3413.0,3412.6,0.0073895]
[1641485795740,0.352,3412.9,3412.6,0.0073895]
[1641485796840,0.352,3412.9,3412.0,0.73284]
[1641485797242,0.352,3412.9,3412.1,0.01023162]
[1641485797845,0.352,3412.9,3411.9,0.01136847]
[1641485798045,0.352,3412.9,3412.4,0.73276]
[1641485798243,0.352,3412.9,3412.4,2.36914128]